bitfinex/quotes_SOLUSD_20250624
["timestamp","ask_amount","ask_price","bid_price","bid_amount"]
[1750750661594,9.36252899,144.8,144.77,6.90750846]
[1750750662790,3.2852969,144.87,144.77,6.90750846]
[1750750662968,9.36252899,144.81,144.77,96.30750846]
[1750750663376,9.36252899,144.8,144.77,96.30750846]
[1750750663902,9.36252899,144.78,144.77,89.4]
[1750750664883,9.36252899,144.78,144.75,0.2437188]
[1750750665093,9.36252899,144.8,144.75,0.2437188]
[1750750665094,9.36252899,144.76,144.75,0.2437188]
[1750750665902,9.36252899,144.78,144.75,7.15218166]
[1750750666085,9.36252899,144.8,144.75,16.51471065]
[1750750666267,9.36252899,144.8,144.76,9.36252899]
[1750750666466,6.633,144.85,144.77,9.36252899]
[1750750666674,9.36252899,144.82,144.78,9.36252899]
[1750750667096,6.2237,144.89,144.81,9.36252899]
[1750750667388,9.36252899,144.89,144.85,6.90369347]
[1750750667589,9.36252899,144.9,144.86,9.36252899]
[1750750667766,9.36252899,144.93,144.88,9.36252899]
[1750750668097,9.36252899,144.92,144.88,9.36252899]
[1750750668395,9.36252899,144.94,144.87,18.64964886]
[1750750668582,9.36252899,144.95,144.91,9.36252899]
[1750750668885,9.36252899,144.96,144.92,9.36252899]
[1750750669092,9.36252899,144.97,144.87,18.64964886]
[1750750669267,9.36252899,144.97,144.93,9.36252899]
[1750750669469,14.7571,145.01,144.94,6.89940665]
[1750750669663,14.7571,145.01,144.94,16.26193564]
[1750750669888,9.36252899,144.98,144.94,16.26193564]
[1750750670410,9.36252899,144.99,144.95,9.36252899]
[1750750670988,6.0227,145.05,144.95,9.36252899]
[1750750671199,9.36252899,144.96,144.89,9.36252899]
[1750750671365,9.36252899,145.0,144.89,9.36252899]
[1750750671366,9.36252899,144.93,144.89,98.76252899]
[1750750671570,9.36252899,144.91,144.89,89.4]
[1750750671775,9.36252899,144.91,144.88,6.90209492]
[1750750672598,9.36252899,144.92,144.88,6.90209492]
[1750750672770,9.36252899,144.93,144.89,9.36252899]
[1750750672974,6.2696,144.97,144.89,98.76252899]
[1750750673295,9.36252899,144.93,144.89,98.76252899]
[1750750673794,9.36252899,144.93,144.9,6.90131124]
[1750750673991,6.2696,144.97,144.9,6.90131124]
[1750750673992,9.36252899,144.94,144.9,6.90131124]
[1750750674510,13.144086,144.94,144.9,6.90131124]
[1750750674811,13.144086,144.94,144.9,20.04539724]
[1750750675497,13.144086,144.94,144.9,7.14503004]
[1750750675690,13.144086,144.91,144.9,0.2437188]
[1750750676088,13.144086,144.92,144.9,0.2437188]
[1750750676307,13.144086,144.91,144.9,0.2437188]
[1750750677623,6.357,145.0,144.9,109.68887922]
[1750750677909,13.144086,144.98,144.94,13.144086]
[1750750678108,6.357,145.0,144.91,18.64964886]
[1750750678109,13.144086,144.97,144.93,13.144086]
[1750750678302,13.144086,144.96,144.91,13.144086]
[1750750678887,13.144086,144.97,144.92,13.144086]
[1750750679199,13.144086,144.98,144.93,13.144086]
[1750750679399,6.357,145.0,144.93,13.144086]
[1750750679601,6.357,145.0,144.91,18.64964886]
[1750750679602,13.144086,144.98,144.92,0.6408048]
[1750750679813,13.144086,144.98,144.93,20.04381717]
[1750750680202,13.144086,144.97,144.93,20.04381717]
[1750750680507,13.144086,144.97,144.93,6.89973117]
[1750750681098,13.144086,144.97,144.93,20.04381717]
[1750750681296,6.5554,145.04,144.97,18.64964886]
[1750750681510,6.5554,145.09,145.01,13.144086]
[1750750681819,13.144086,145.05,145.01,13.144086]
[1750750682232,13.144086,145.04,144.99,6.89702738]
[1750750682410,13.144086,145.02,144.97,6.89789513]
[1750750682731,26.59179223,145.09,144.97,20.04198113]
[1750750682913,13.144086,145.02,144.97,20.04198113]
[1750750683244,21.19194024,145.07,144.93,6.89973719]
[1750750683537,13.144086,144.98,144.94,13.144086]
[1750750683711,13.144086,144.98,144.93,20.04382319]
[1750750683910,13.144086,144.99,144.94,13.144086]
[1750750684829,13.144086,144.99,144.95,13.144086]
[1750750685044,13.144086,145.0,144.96,13.144086]
[1750750685214,13.144086,145.01,144.96,13.144086]
[1750750685412,13.144086,145.02,144.98,13.144086]
[1750750685613,13.144086,145.02,144.97,13.144086]
[1750750685817,13.144086,145.02,144.98,6.8975031]
[1750750686028,1.7430969,145.06,144.98,6.8975031]
[1750750686206,13.144086,145.02,144.98,6.8975031]
[1750750686403,13.144086,145.01,144.97,20.04193204]
[1750750686718,13.144086,145.0,144.96,6.89838342]
[1750750687143,1.7430969,145.06,144.96,6.89838342]
[1750750687347,13.144086,145.02,144.97,13.144086]
[1750750687655,13.144086,145.02,144.98,13.144086]
[1750750687854,13.144086,145.02,144.98,20.04113397]
[1750750688030,1.7430969,145.06,144.98,20.04113397]
[1750750688230,13.144086,145.03,144.99,13.144086]
[1750750688551,13.144086,145.03,144.98,6.89704797]
[1750750688730,13.144086,145.04,144.99,13.144086]
[1750750688929,13.144086,145.04,145.0,13.144086]
[1750750689143,13.144086,145.04,144.98,24.14080572]
[1750750689144,13.144086,145.04,144.99,13.144086]
[1750750689549,13.144086,145.03,144.98,6.89704797]
[1750750689765,13.144086,145.01,144.98,6.89704797]
[1750750689941,13.144086,145.01,144.97,20.04189647]
[1750750690122,13.144086,144.99,144.95,6.89893066]
[1750750690331,13.144086,144.96,144.92,128.34556205]
[1750750690543,6.3578,145.01,144.92,126.68086205]
[1750750690949,13.144086,144.94,144.92,126.68086205]
[1750750691453,13.144086,144.93,144.92,126.68086205]
[1750750692448,6.3578,145.01,144.92,133.58122086]
[1750750692637,13.144086,144.96,144.92,222.98122086]
[1750750692835,13.144086,144.95,144.92,222.98122086]
[1750750693063,13.144086,144.95,144.92,216.08086205]
[1750750693230,13.144086,144.93,144.92,216.08086205]
[1750750694353,13.144086,144.93,144.92,126.68086205]
[1750750694538,13.144086,144.93,144.92,0.6408048]
[1750750694949,19.312586,144.93,144.92,0.6408048]
[1750750695942,13.144086,144.93,144.92,0.6408048]
[1750750700139,13.144086,144.93,144.85,89.4]
[1750750700140,20.0439687,144.93,144.85,89.4]
[1750750700336,13.144086,144.86,144.85,89.4]
[1750750700540,24.80784886,144.97,144.84,6.90417011]
[1750750700741,204.06028087,145.08,144.9,18.64964886]
[1750750700742,6.4496,145.01,144.9,18.64964886]
[1750750700940,13.144086,144.97,144.9,18.64964886]
[1750750701146,13.144086,144.97,144.92,13.144086]
[1750750701357,6.4496,145.01,144.91,13.144086]
[1750750701358,13.144086,144.96,144.91,13.144086]
[1750750701536,6.4496,145.01,144.91,13.144086]
[1750750701739,13.144086,144.98,144.93,13.144086]
[1750750702164,6.4496,145.01,144.94,20.04349265]
[1750750702165,13.144086,144.99,144.94,20.04349265]
[1750750702862,13.144086,144.98,144.94,6.89940665]
[1750750703164,6.4496,145.01,144.94,24.14792327]
[1750750703340,13.144086,145.01,144.95,18.64964886]
[1750750703538,13.144086,145.02,144.97,13.144086]
[1750750703934,13.144086,145.03,144.95,20.21704886]
[1750750704170,13.144086,145.03,144.99,6.89702738]
[1750750704567,6.2531,145.05,144.97,25.54762775]
[1750750704862,13.144086,145.01,144.96,20.04236501]
[1750750705061,13.144086,145.01,144.96,6.89827901]
[1750750705267,13.144086,145.0,144.96,6.89827901]
[1750750705442,13.144086,145.01,144.96,20.04236501]
[1750750705643,13.144086,145.01,144.96,6.89827901]
[1750750705970,13.144086,145.01,144.96,20.04236501]
[1750750706959,6.2531,145.05,144.96,6.89827901]
[1750750707270,13.144086,145.01,144.96,20.04236501]
[1750750707445,13.144086,145.01,144.96,6.89827901]
[1750750707645,6.2531,145.05,144.97,31.79373486]
[1750750707967,13.144086,145.04,144.97,18.64964886]
[1750750708182,14.4329,145.08,144.99,13.144086]
[1750750708349,9.3473954,145.04,145.0,9.3473954]
[1750750708549,9.3473954,145.04,144.98,24.14126085]
[1750750709164,6.95170686,145.1,145.02,9.3473954]
[1750750709370,9.3473954,145.08,145.03,9.3473954]
[1750750709545,9.3473954,145.08,145.04,9.3473954]
[1750750709937,9.3473954,145.08,144.98,58.62877636]
[1750750709938,9.3473954,145.08,145.03,9.3473954]
[1750750710166,9.3473954,145.08,145.02,6.8956006]
[1750750710469,13.12241957,145.04,145.0,13.12241957]
[1750750710648,13.12241957,145.09,144.99,31.77206843]
[1750750710853,13.12241957,145.04,144.99,18.64964886]
[1750750711068,13.12241957,145.04,145.0,13.12241957]
[1750750711874,6.95170686,145.1,145.0,13.12241957]
[1750750712085,13.12241957,145.05,145.01,6.89607613]
[1750750712769,13.12241957,145.05,145.01,20.0184957]
[1750750712973,13.12241957,145.05,145.01,6.89607613]
[1750750713166,13.12241957,145.05,145.01,20.0184957]
[1750750713363,13.12241957,145.05,145.01,6.89607613]
[1750750714656,13.12241957,145.05,145.01,96.29607613]
[1750750715065,13.12241957,145.05,145.01,6.89607613]
[1750750715986,13.12241957,145.03,145.0,6.89645105]
[1750750716158,13.12241957,145.01,144.97,19.40171957]
[1750750716967,13.12241957,145.03,144.99,13.12241957]
[1750750717265,13.12241957,145.02,144.98,20.01979632]
[1750750717468,13.12241957,144.99,144.93,6.1761]
[1750750717671,13.12241957,144.96,144.92,37.2736285]
[1750750717867,13.12241957,144.96,144.92,6.90035881]
[1750750718086,13.12241957,144.94,144.89,13.12241957]
[1750750718277,13.12241957,144.94,144.9,6.90113211]
[1750750718465,13.12241957,144.93,144.9,6.90113211]
[1750750718661,25.544774,145.03,144.91,13.12241957]
[1750750718876,13.12241957,144.95,144.91,13.12241957]
[1750750719364,13.12241957,144.95,144.9,37.2768298]
[1750750719774,13.12241957,144.96,144.91,31.77206843]
[1750750719982,11.63709922,145.04,144.95,13.12241957]
[1750750719983,13.12241957,145.01,144.95,13.12241957]
[1750750720187,13.12241957,145.01,144.96,13.12241957]
[1750750720369,13.12241957,145.01,144.91,18.64964886]
[1750750720569,13.12241957,145.0,144.94,18.64964886]
[1750750720767,13.12241957,145.0,144.92,18.64964886]
[1750750721079,13.12241957,144.99,144.95,13.12241957]
[1750750721284,6.6085,145.04,144.96,13.12241957]
[1750750721481,13.12241957,145.01,144.96,13.12241957]
[1750750721671,8.46049437,145.07,144.94,6.0638]
[1750750721672,13.12241957,145.02,144.97,13.12241957]
[1750750721994,13.12241957,145.02,144.98,6.8975031]
[1750750722379,13.12241957,145.01,144.98,6.8975031]
[1750750722580,13.12241957,145.02,144.98,6.8975031]
[1750750723503,13.12241957,145.04,145.0,13.12241957]
[1750750723682,13.12241957,145.06,145.01,13.12241957]
[1750750723999,6.2974,145.08,144.98,42.79090971]
[1750750724000,13.12241957,145.05,145.0,20.01850165]
[1750750724199,6.2974,145.08,145.01,13.12241957]
[1750750724377,13.12241957,145.06,145.01,13.12241957]
[1750750724577,13.12241957,145.07,145.02,13.12241957]
[1750750725000,13.12241957,145.08,145.03,13.12241957]
[1750750725300,13.12241957,145.05,145.01,13.12241957]
[1750750725504,13.12241957,145.05,145.01,102.52241957]
[1750750725691,13.12241957,145.06,145.02,13.12241957]
[1750750725891,13.12241957,145.06,145.02,6.8956006]
[1750750726991,13.12241957,145.05,145.02,6.8956006]
[1750750727519,13.12241957,145.03,145.01,96.29606286]
[1750750727685,13.12241957,145.04,145.01,96.29606286]
[1750750727888,13.12241957,145.04,145.01,6.89606286]
[1750750728616,13.12241957,145.05,145.01,6.89606286]
[1750750728931,13.12241957,145.04,145.01,6.89606286]
[1750750729799,8.08,145.1,145.01,6.89606286]
[1750750729800,13.12241957,145.05,145.01,6.89606286]
[1750750730016,13.94066362,145.12,145.02,18.64964886]
[1750750730216,13.12241957,145.08,145.03,13.12241957]
[1750750730395,13.12241957,145.07,145.02,18.64964886]
[1750750730592,13.12241957,145.07,145.02,31.77206843]
[1750750730846,13.12241957,145.07,145.03,6.89512514]
[1750750732310,9.34256886,145.07,145.03,6.89512514]
[1750750732517,9.34256886,145.05,144.99,24.13957989]
[1750750732715,9.34256886,145.05,145.01,6.89607613]
[1750750732895,9.34256886,145.06,145.02,9.34256886]
[1750750733093,9.34256886,145.04,145.01,6.89607613]
[1750750734620,9.34256886,145.02,144.99,6.89702738]
[1750750735714,9.34256886,145.02,144.98,6.8975031]
[1750750735910,9.34256886,145.01,144.98,6.8975031]
[1750750736325,6.89208436,145.1,144.98,6.8975031]
[1750750736618,9.34256886,145.01,144.98,6.8975031]
[1750750737399,9.34256886,145.02,144.98,6.8975031]
[1750750737800,9.34256886,145.01,144.98,6.8975031]
[1750750738230,9.34256886,145.01,144.97,6.89778961]
[1750750738432,1.6577,145.07,144.97,6.89778961]
[1750750738433,9.34256886,145.0,144.97,6.89778961]
[1750750738602,1.6577,145.07,144.97,6.89778961]
[1750750738603,9.34256886,145.01,144.97,6.89778961]
[1750750738807,9.34256886,145.0,144.97,6.89778961]
[1750750739922,9.34256886,145.01,144.97,6.89778961]
[1750750740119,6.4967,145.04,144.97,25.54743847]
[1750750740323,9.34256886,145.0,144.97,6.89778961]
[1750750740510,9.34256886,145.0,144.97,96.29778961]
[1750750740709,9.34256886,145.02,144.98,9.34256886]
[1750750740908,1.6577,145.07,144.98,98.74256886]
[1750750741227,9.34256886,145.02,144.98,89.4]
[1750750741614,9.34256886,145.02,144.99,6.89702738]
[1750750742234,9.34256886,145.04,145.0,9.34256886]
[1750750742734,9.34256886,145.03,145.0,89.4]
[1750750742931,9.34256886,145.01,144.99,96.29702738]
[1750750743131,9.34256886,145.01,144.99,89.4]
[1750750743442,9.34256886,145.0,144.95,89.4]
[1750750743767,9.34256886,145.0,144.91,6.900835]
[1750750743768,9.34256886,144.96,144.91,6.900835]
[1750750743940,15.85226886,145.0,144.89,89.4]
[1750750743941,9.34256886,144.92,144.89,89.4]
[1750750744130,9.34256886,144.92,144.88,6.90226394]
[1750750744331,9.34256886,144.92,144.88,33.50049265]
[1750750744549,9.34256886,144.96,144.91,9.34256886]
[1750750744746,9.34256886,144.97,144.92,9.34256886]
[1750750745049,9.34256886,144.97,144.9,18.64964886]
[1750750745250,9.34256886,144.98,144.94,9.34256886]
[1750750745651,9.34256886,144.99,144.95,16.24149952]
[1750750745870,9.34256886,145.0,144.95,16.24149952]
[1750750746149,9.34256886,144.99,144.95,16.24149952]
[1750750746353,9.34256886,145.0,144.95,16.24149952]
[1750750746657,9.34256886,145.01,144.96,9.34256886]
[1750750748055,9.34256886,145.01,144.96,18.64964886]
[1750750748250,9.34256886,145.01,144.96,27.99221772]
[1750750748635,9.34256886,145.01,144.96,18.64964886]
[1750750748838,9.34256886,145.01,144.97,9.34256886]
[1750750749053,9.34256886,145.01,144.98,6.8975031]
[1750750750145,8.08,145.07,144.98,6.8975031]
[1750750750347,9.34256886,145.01,144.98,6.8975031]
[1750750751156,9.34256886,145.01,144.97,6.89797889]
[1750750751776,8.08,145.07,144.98,18.64964886]
[1750750751977,9.34256886,145.04,145.0,9.34256886]
[1750750752277,9.34256886,145.03,145.0,89.4]
[1750750752867,9.34256886,145.04,145.0,89.4]
[1750750753061,9.34256886,145.04,145.01,6.89607613]
[1750750754577,9.34256886,145.05,145.01,6.89607613]
[1750750754785,9.34256886,145.06,145.01,33.47883532]
[1750750755083,9.34256886,145.06,145.02,9.34256886]
[1750750755284,9.34256886,145.06,145.03,6.89512514]
[1750750755478,9.34256886,145.05,145.03,6.89512514]
[1750750756794,9.34256886,145.04,144.98,89.4]
[1750750756961,9.34256886,145.0,144.98,89.4]
[1750750757176,9.34256886,144.99,144.98,89.4]
[1750750757578,9.34256886,144.99,144.95,6.89877699]
[1750750757800,9.34256886,144.96,144.95,89.4]
[1750750758002,9.34256886,144.96,144.94,96.29932887]
[1750750758500,8.0349,145.03,144.94,96.29932887]
[1750750758501,9.34256886,144.97,144.94,96.29932887]
[1750750758676,9.34256886,144.96,144.94,6.89932887]
[1750750758877,9.34256886,144.95,144.94,89.4]
[1750750759078,9.34256886,144.95,144.93,6.89972421]
[1750750759296,9.34256886,144.94,144.93,6.89972421]
[1750750759590,9.34256886,144.95,144.93,6.89972421]
[1750750760499,9.34256886,144.94,144.92,104.26025433]
[1750750761397,9.34256886,144.94,144.92,96.30025433]
[1750750761570,9.34256886,145.0,144.92,96.30025433]
[1750750761767,9.34256886,144.98,144.94,9.34256886]
[1750750761971,9.34256886,145.0,144.95,27.99221772]
[1750750762194,9.34256886,144.98,144.95,108.04964886]
[1750750762391,9.34256886,144.98,144.95,89.4]
[1750750762603,9.34256886,144.97,144.95,89.4]
[1750750762802,6.5316,145.03,144.95,89.4]
[1750750762986,9.34256886,144.98,144.93,117.39221772]
[1750750763501,6.5316,145.03,144.94,6.89940665]
[1750750763801,9.34256886,144.98,144.94,96.29940665]
[1750750763991,9.34256886,144.98,144.94,113.54792327]
[1750750764195,9.34256886,144.98,144.94,122.89049213]
[1750750764395,9.34256886,144.98,144.94,113.54792327]
[1750750764575,9.34256886,144.98,144.94,122.89049213]
[1750750765310,9.34256886,144.99,144.95,27.99221772]
[1750750765481,9.34256886,145.0,144.96,9.34256886]
[1750750765673,9.34256886,145.01,144.97,6.89797889]
[1750750765992,9.34256886,145.01,144.97,96.29797889]
[1750750766499,9.34256886,145.0,144.97,96.29797889]
[1750750766887,9.34256886,145.02,144.98,18.64964886]
[1750750767091,9.34256886,145.02,144.98,108.04964886]
[1750750767282,9.34256886,145.01,144.98,108.04964886]
[1750750767606,9.34256886,145.01,144.99,6.89702738]
[1750750769095,9.34256886,145.0,144.98,96.297376]
[1750750770398,7.784,145.07,144.98,96.297376]
[1750750770701,9.34256886,145.02,144.98,105.63994486]
[1750750770882,9.34256886,145.01,144.98,96.297376]
[1750750772600,9.34256886,145.0,144.98,96.29746491]
[1750750773696,9.34256886,145.01,144.98,96.29746491]
[1750750774527,9.34256886,145.02,144.98,105.64003377]
[1750750775215,7.784,145.07,144.96,89.4]
[1750750775216,9.34256886,144.99,144.96,89.4]
[1750750775418,9.34256886,144.97,144.96,89.4]
[1750750775899,25.54334801,145.06,144.96,89.4]
[1750750776221,14.67742255,145.07,144.95,96.29859256]
[1750750776515,9.34256886,144.99,144.95,96.29859256]
[1750750776721,9.34256886,144.99,144.95,105.64116142]
[1750750776895,12.82966561,145.07,144.98,9.34256886]
[1750750777092,9.34256886,145.03,144.99,9.34256886]
[1750750777419,9.34256886,145.01,144.99,89.4]
[1750750777724,9.34256886,145.0,144.99,89.4]
[1750750777901,9.34256886,145.0,144.96,98.74256886]
[1750750778223,7.784,145.07,144.96,98.74256886]
[1750750778397,9.34256886,145.0,144.96,98.74256886]
[1750750778598,9.34256886,145.01,144.98,6.8975031]
[1750750778810,7.784,145.07,144.98,96.2975031]
[1750750779205,9.34256886,145.01,144.98,96.2975031]
[1750750783240,9.34256886,144.99,144.97,89.4]
[1750750783467,9.34256886,144.98,144.94,89.4]
[1750750783618,9.34256886,144.95,144.94,89.4]
[1750750784506,9.34256886,144.95,144.94,96.29931945]
[1750750785634,9.34256886,144.96,144.94,96.29931945]
[1750750785933,9.34256886,144.95,144.94,96.29931945]
[1750750787463,9.34256886,144.95,144.94,89.4]
[1750750788072,9.34256886,144.95,144.91,89.4]
[1750750788277,16.92826886,145.0,144.91,89.4]
[1750750788278,9.34256886,144.92,144.91,89.4]
[1750750788446,9.34256886,144.95,144.91,96.300835]
[1750750788851,9.34256886,144.93,144.91,89.4]
[1750750789148,9.34256886,144.92,144.91,89.4]
[1750750789871,9.34256886,144.92,144.91,96.300835]
[1750750790036,9.34256886,144.92,144.91,89.4]
[1750750790961,9.34256886,144.93,144.91,89.4]
[1750750791256,9.34256886,144.92,144.91,89.4]
[1750750791644,9.34256886,144.92,144.88,89.4]
[1750750791843,9.34256886,144.9,144.88,96.30214547]
[1750750792254,9.34256886,144.9,144.88,89.4]
[1750750794344,9.34256886,144.91,144.88,96.30204927]
[1750750794667,9.34256886,144.92,144.88,105.64461813]
[1750750794968,9.34256886,144.91,144.88,96.30204927]
[1750750795168,23.82493827,145.0,144.88,89.4]
[1750750795169,9.34256886,144.9,144.88,89.4]
[1750750795471,9.34256886,144.92,144.88,96.30225876]
[1750750795642,9.34256886,144.92,144.88,105.64482762]
[1750750796053,9.34256886,144.91,144.88,96.30225876]
[1750750796868,16.92826886,145.0,144.89,18.64964886]
[1750750797177,9.34256886,144.93,144.89,117.39221772]
[1750750797676,9.34256886,144.94,144.89,117.39221772]
[1750750797872,9.34256886,144.93,144.89,117.39221772]
[1750750798370,16.92826886,145.0,144.89,117.39221772]
[1750750798675,9.34256886,144.93,144.89,117.39221772]
[1750750799071,9.34256886,144.93,144.9,6.90131124]
[1750750799270,7.5857,145.0,144.9,122.89715822]
[1750750799452,9.34256886,144.95,144.91,27.99221772]
[1750750799646,9.34256886,144.96,144.91,117.39221772]
[1750750800061,9.34256886,144.96,144.91,108.04964886]
[1750750800254,16.92826886,145.0,144.91,117.39221772]
[1750750800572,9.34256886,144.97,144.93,18.64964886]
[1750750800747,9.34256886,144.94,144.93,89.4]
[1750750804991,9.34256886,144.94,144.89,89.4]
[1750750805185,9.34256886,144.9,144.87,197.82038129]
[1750750805479,9.34256886,144.88,144.87,197.82038129]
[1750750806378,9.34256886,144.93,144.88,18.64964886]
[1750750806563,9.34256886,144.93,144.88,117.39221772]
[1750750806763,7.8883,144.97,144.88,117.39221772]
[1750750806764,9.34256886,144.91,144.88,89.4]
[1750750807079,7.8883,144.97,144.88,89.4]
[1750750807258,9.34256886,144.91,144.88,89.4]
[1750750807463,9.34256886,144.91,144.89,6.90178756]
[1750750810682,9.34256886,144.91,144.89,96.30178756]
[1750750811187,9.34256886,144.91,144.89,89.4]
[1750750811859,7.8883,144.97,144.89,96.30146557]
[1750750812060,9.34256886,144.92,144.89,96.30146557]
[1750750812277,5.61722901,144.91,144.89,96.30146557]
[1750750812761,5.61722901,144.92,144.89,96.30146557]
[1750750813781,7.8883,144.97,144.89,96.30146557]
[1750750813975,5.61722901,144.92,144.89,96.30146557]
[1750750814575,5.61722901,144.93,144.89,96.30146557]
[1750750814789,7.8883,144.97,144.9,18.64964886]
[1750750814970,5.61722901,144.94,144.9,113.66687787]
[1750750815177,5.61722901,144.95,144.9,113.66687787]
[1750750815488,5.61722901,144.95,144.91,5.61722901]
[1750750815990,5.61722901,144.96,144.93,6.8998827]
[1750750816195,5.61722901,144.96,144.93,96.2998827]
[1750750816376,7.94,145.0,144.93,96.2998827]
[1750750816580,5.61722901,144.99,144.95,5.61722901]
[1750750816906,5.61722901,144.98,144.94,24.26687787]
[1750750818107,5.61722901,144.98,144.95,6.89893066]
[1750750819517,5.61722901,144.96,144.93,89.4]
[1750750819684,5.61722901,144.94,144.91,18.64964886]
[1750750820086,5.61722901,144.94,144.91,25.55048386]
[1750750820700,10.70965734,145.04,144.92,5.61722901]
[1750750821016,5.61722901,144.97,144.92,5.61722901]
[1750750821191,5.61722901,144.96,144.92,5.61722901]
[1750750821709,5.61722901,144.96,144.93,6.8998827]
[1750750823688,5.61722901,144.96,144.92,6.90035881]
[1750750825319,5.61722901,144.96,144.92,12.51758782]
[1750750825531,5.61722901,144.96,144.92,101.91758782]
[1750750825898,5.61722901,144.97,144.93,24.26687787]
[1750750826105,5.61722901,144.97,144.93,18.64964886]
[1750750826310,5.61722901,144.97,144.93,24.26687787]
[1750750826729,5.61722901,144.99,144.94,5.61722901]
[1750750826905,5.61722901,144.99,144.94,95.01722901]
[1750750827528,5.61722901,144.99,144.95,6.89893066]
[1750750827828,5.61722901,144.96,144.95,89.4]
[1750750828323,5.61722901,145.04,144.95,89.4]
[1750750828503,5.61722901,144.96,144.95,89.4]
[1750750829508,5.61722901,144.96,144.95,96.29893066]
[1750750830512,5.61722901,144.96,144.95,89.4]
[1750750833610,11.23445802,144.96,144.95,89.4]
[1750750833916,11.23445802,144.96,144.89,89.4]
[1750750834104,5.61722901,144.9,144.89,89.4]
[1750750834306,5.61722901,144.9,144.87,108.42038129]
[1750750834529,5.61722901,144.88,144.87,108.42038129]
[1750750834725,5.41269569,144.93,144.87,108.42038129]
[1750750834726,5.61722901,144.9,144.87,108.42038129]
[1750750834906,5.61722901,144.9,144.87,197.82038129]
[1750750835324,5.61722901,144.91,144.87,204.72312167]
[1750750835509,5.61722901,144.96,144.88,24.26687787]
[1750750835714,5.61722901,144.92,144.89,6.90178756]
[1750750835927,5.61722901,144.93,144.89,96.30178756]
[1750750836514,5.61722901,144.92,144.89,96.30178756]
[1750750837038,5.61722901,144.93,144.89,96.30178756]
[1750750837630,5.61722901,144.95,144.9,24.26687787]
[1750750837822,7.8646,144.98,144.9,24.26687787]
[1750750837823,5.61722901,144.94,144.9,113.66687787]
[1750750838021,5.61722901,144.95,144.9,113.66687787]
[1750750839230,5.61722901,144.95,144.91,6.900835]
[1750750839624,5.61722901,144.95,144.91,96.300835]
[1750750840422,5.61722901,144.95,144.91,101.91806401]
[1750750840625,5.61722901,144.96,144.92,24.26687787]
[1750750840932,5.61722901,144.97,144.92,24.26687787]
[1750750841340,5.61722901,144.97,144.93,6.8998827]
[1750750841523,5.61722901,144.97,144.93,96.2998827]
[1750750841953,5.61722901,144.96,144.93,96.2998827]
[1750750844451,13.13011948,145.02,144.93,96.2998827]
[1750750844653,5.61722901,144.96,144.93,96.2998827]
[1750750844847,7.6463,145.02,144.93,119.16681846]
[1750750845145,5.61722901,144.99,144.94,5.61722901]
[1750750845342,5.61722901,144.99,144.95,18.64964886]
[1750750845644,5.61722901,144.99,144.95,24.26687787]
[1750750846052,5.61722901,144.99,144.95,113.66687787]
[1750750846249,5.61722901,145.0,144.95,113.66687787]
[1750750846454,5.61722901,144.99,144.95,113.66687787]
[1750750847042,5.61722901,144.99,144.96,6.89845474]
[1750750847463,5.61722901,145.04,144.96,6.89845474]
[1750750847770,5.61722901,145.04,144.96,96.29845474]
[1750750847944,5.61722901,144.99,144.96,96.29845474]
[1750750848563,5.61722901,144.99,144.96,89.4]
[1750750848743,5.61722901,144.97,144.96,89.4]
[1750750849960,5.61722901,145.04,144.96,96.29845474]
[1750750850266,5.61722901,144.98,144.96,96.29845474]
[1750750850661,5.61722901,144.97,144.96,89.4]
[1750750854680,12.51191803,145.04,144.96,89.4]
[1750750854885,5.61722901,144.97,144.96,89.4]
[1750750855575,11.23445802,144.97,144.96,89.4]
[1750750855761,1.5755,144.98,144.96,89.4]
[1750750855960,5.61722901,144.97,144.96,89.4]
[1750750856660,11.23445802,144.97,144.96,89.4]
[1750750856971,11.23445802,144.97,144.91,96.30067664]
[1750750857281,5.61722901,144.92,144.91,89.4]
[1750750858394,6.63142308,144.98,144.91,89.4]
[1750750858620,5.61722901,144.92,144.91,89.4]
[1750750860157,5.61722901,144.92,144.88,89.4]
[1750750860506,5.61722901,144.89,144.88,89.4]
[1750750860660,5.61722901,144.89,144.87,197.82038129]
[1750750861003,5.61722901,144.88,144.87,197.82038129]
[1750750862626,11.23445802,144.88,144.87,197.82038129]
[1750750862907,5.61722901,144.88,144.87,197.82038129]
[1750750863816,5.61722901,144.88,144.87,204.72312167]
[1750750864219,5.61722901,144.88,144.87,197.82038129]
[1750750865808,5.61722901,144.88,144.87,204.72312167]
[1750750866008,5.61722901,144.88,144.87,197.82038129]
[1750750866221,5.61722901,144.88,144.87,204.72312167]
[1750750866421,6.3809,144.92,144.87,204.72312167]
[1750750866422,5.61722901,144.89,144.87,204.72312167]